bitfinex/quotes_ETHUSD_20241204
["timestamp","ask_amount","ask_price","bid_price","bid_amount"]
[1733273601398,0.1083,3649.6,3648.5,2.74083]
[1733273601710,0.1083,3649.6,3648.3,2.74098]
[1733273601890,0.1083,3649.6,3648.4,3.015018]
[1733273602215,0.1083,3649.6,3648.4,0.274098]
[1733273602376,0.1083,3649.6,3648.3,2.74099]
[1733273603267,0.1083,3649.6,3647.7,2.74138]
[1733273603464,0.1083,3649.6,3648.4,2.7409]
[1733273603875,0.1083,3649.6,3647.6,1.2926]
[1733273604080,0.1083,3649.6,3648.7,2.74064]
[1733273604309,0.1083,3649.6,3648.8,0.274064]
[1733273604479,0.1083,3649.6,3648.8,3.014674]
[1733273604805,0.1083,3649.6,3648.8,0.274064]
[1733273605311,0.1083,3649.6,3649.1,2.7404]
[1733273605807,0.1083,3649.6,3648.5,1.2866]
[1733273606104,2.73935,3650.5,3648.5,1.2866]
[1733273606105,0.1083,3650.8,3649.2,2.74027]
[1733273606310,0.1083,3650.6,3649.2,2.74026]
[1733273606478,0.28817407,3650.5,3649.2,3.014286]
[1733273606882,2.84773,3650.4,3648.9,2.74054]
[1733273607105,0.1083,3650.3,3648.9,2.74054]
[1733273607300,0.1083,3650.1,3648.5,2.74082]
[1733273607516,0.1083,3650.1,3648.6,2.74077]
[1733273607826,0.1083,3650.0,3648.1,0.699102]
[1733273608027,3.0,3650.5,3648.3,2.74095]
[1733273608028,0.1083,3649.8,3648.3,2.74095]
[1733273608533,2.73987,3649.8,3648.3,2.74095]
[1733273608821,0.1083,3649.7,3648.5,2.7408]
[1733273609026,0.1083,3649.4,3646.6,2.74223]
[1733273609188,0.1083,3649.4,3647.8,1.3303]
[1733273609523,0.1083,3649.4,3648.3,2.74099]
[1733273609724,0.1083,3649.4,3648.1,2.74109]
[1733273609905,0.1083,3649.4,3647.9,2.7413]
[1733273609906,0.1083,3649.4,3649.0,2.74046]
[1733273610110,0.1083,3649.4,3649.1,0.274046]
[1733273610502,0.1083,3649.4,3648.6,2.74076]
[1733273611007,0.1083,3649.4,3648.3,2.74096]
[1733273611209,0.1083,3649.4,3648.4,2.7409]
[1733273611541,0.1083,3649.4,3647.8,1.3303]
[1733273611822,0.1083,3649.4,3648.5,2.74084]
[1733273612021,0.1083,3649.4,3648.5,3.014924]
[1733273612986,0.28638619,3649.3,3648.5,3.014924]
[1733273613599,0.28638619,3649.3,3648.5,0.274084]
[1733273613932,0.28638619,3649.3,3648.6,2.74077]
[1733273614603,0.28638619,3649.3,3648.3,2.74099]
[1733273614812,0.28638619,3649.3,3648.7,2.74067]
[1733273615131,0.28638619,3649.3,3648.8,2.74062]
[1733273615286,0.28638619,3649.3,3648.8,3.014682]
[1733273615743,0.28638619,3649.3,3649.0,2.74042]
[1733273616034,0.28638619,3649.3,3648.8,0.274062]
[1733273616201,0.28638619,3649.3,3648.4,2.74092]
[1733273616399,0.28638619,3649.3,3648.1,2.74115]
[1733273616748,0.28638619,3649.3,3648.6,2.74077]
[1733273617225,0.28638619,3649.3,3648.8,2.74061]
[1733273617428,0.28638619,3649.3,3648.6,2.74074]
[1733273617587,0.28638619,3649.3,3648.7,0.274074]
[1733273618233,0.28638619,3649.3,3648.8,2.74056]
[1733273618441,0.28638619,3649.3,3648.9,2.74053]
[1733273618997,0.28638619,3649.3,3647.8,1.3303]
[1733273618998,0.28638619,3649.3,3649.1,2.74037]
[1733273619497,0.28638619,3649.3,3648.8,2.74055]
[1733273619696,0.28638619,3649.3,3648.6,2.74074]
[1733273619929,0.28638619,3649.3,3648.6,2.7407]
[1733273620132,0.28638619,3649.3,3648.8,2.74062]
[1733273620296,0.28638619,3649.3,3648.8,3.014682]
[1733273620491,0.28638619,3649.3,3648.1,2.74115]
[1733273620798,0.28638619,3649.3,3648.8,2.74061]
[1733273620998,0.28638619,3649.3,3648.9,2.74052]
[1733273621243,0.28638619,3649.3,3648.0,0.40716]
[1733273621443,0.28638619,3649.3,3648.9,2.74054]
[1733273622134,0.28638619,3649.3,3649.0,2.74047]
[1733273622341,0.28638619,3649.3,3649.2,2.74032]
[1733273623843,0.28638619,3649.3,3648.7,2.74064]
[1733273624049,0.28638619,3649.3,3648.8,0.411514]
[1733273624256,0.28638619,3649.3,3649.2,2.74032]
[1733273626146,2.73852,3651.7,3649.2,2.74032]
[1733273626147,0.1277,3650.5,3650.4,2.73942]
[1733273626466,0.1277,3651.9,3650.9,2.73898]
[1733273627006,0.1277,3651.9,3650.2,1.3148]
[1733273627252,0.1277,3651.9,3651.0,2.73894]
[1733273627615,0.1277,3651.9,3651.2,2.7388]
[1733273627815,0.1277,3651.9,3650.4,2.73942]
[1733273628031,0.1277,3651.9,3651.4,2.73866]
[1733273628209,0.1277,3651.9,3651.3,2.73874]
[1733273630575,0.1277,3651.9,3651.3,0.273874]
[1733273630868,0.1277,3652.3,3651.2,1.3656]
[1733273631038,0.1277,3653.3,3652.0,2.7382]
[1733273631238,0.1277,3653.3,3651.1,6.17825126]
[1733273631239,0.1277,3653.3,3652.1,0.27382]
[1733273631445,0.1277,3653.3,3652.8,2.73755]
[1733273631843,0.1277,3653.3,3652.9,2.73753]
[1733273632039,0.1277,3653.3,3652.9,2.7375]
[1733273632277,0.1277,3653.3,3653.0,2.73745]
[1733273632574,0.1277,3653.3,3653.1,2.73739]
[1733273632875,0.1277,3653.3,3652.3,2.738]
[1733273632876,0.1277,3653.3,3653.2,2.73732]
[1733273633042,3.48,3653.9,3653.2,2.73732]
[1733273633224,0.1277,3653.8,3653.3,2.73723]
[1733273634057,0.1277,3653.8,3652.8,2.7376]
[1733273634242,0.1277,3653.8,3653.2,2.73732]
[1733273634768,0.1277,3653.8,3652.8,3.01136]
[1733273635569,0.1277,3653.8,3653.1,2.73739]
[1733273635770,0.1277,3653.8,3652.8,0.27376]
[1733273635975,0.1277,3653.8,3652.3,0.13803]
[1733273636270,0.1277,3653.8,3653.1,2.73736]
[1733273636680,0.1277,3653.7,3652.3,0.13803]
[1733273636966,3.11666492,3653.8,3652.4,2.73791]
[1733273636967,0.1277,3653.5,3652.4,2.73791]
[1733273637128,0.1277,3653.5,3651.8,1.3558]
[1733273637327,0.1277,3653.5,3652.1,2.73808]
[1733273637527,0.1277,3653.5,3652.3,2.738]
[1733273637767,0.1277,3653.5,3652.2,0.273808]
[1733273638070,0.1277,3653.5,3652.6,2.73774]
[1733273638232,0.1277,3653.5,3652.2,0.273808]
[1733273638433,0.1277,3653.5,3651.8,1.3558]
[1733273638850,0.1277,3653.5,3652.7,2.73769]
[1733273639942,0.1277,3653.5,3652.7,2.73763]
[1733273640776,0.1277,3653.5,3652.5,2.73784]
[1733273640937,0.1277,3653.5,3652.6,2.73776]
[1733273641133,0.1277,3653.5,3652.8,2.73761]
[1733273641486,0.1277,3653.5,3652.3,2.73794]
[1733273641772,0.1277,3653.5,3652.9,2.73754]
[1733273642677,3.48,3653.9,3653.7,2.73693]
[1733273642879,3.48,3653.9,3653.4,1.2739]
[1733273642880,3.48,3653.9,3653.8,2.73687]
[1733273643231,3.48,3653.9,3653.8,3.284262]
[1733273644033,0.41381969,3654.8,3653.8,3.284262]
[1733273644034,0.28611969,3654.8,3653.9,1.2813]
[1733273644239,0.28611969,3654.8,3654.7,2.7362]
[1733273646387,0.28611969,3654.8,3654.7,4.0395]
[1733273646602,0.28611969,3654.8,3654.7,4.667087]
[1733273646747,0.1575772,3655.2,3654.9,2.73605]
[1733273647250,3.63201,3655.0,3654.9,2.73605]
[1733273648404,1.89630158,3655.0,3654.9,3.99245]
[1733273648758,0.1575772,3655.2,3655.1,2.7359]
[1733273648910,0.1277,3656.7,3656.0,2.73521]
[1733273649064,0.1277,3656.7,3655.5,2.73557]
[1733273649264,0.1277,3656.7,3655.2,2.73582]
[1733273649612,0.1277,3656.7,3656.0,2.73521]
[1733273650093,0.1277,3656.7,3655.4,2.73567]
[1733273650413,0.1277,3656.7,3655.3,0.399222]
[1733273650568,0.1277,3656.7,3656.1,2.7351]
[1733273650768,0.1277,3656.7,3655.1,1.2564]
[1733273650963,0.1277,3656.7,3656.0,2.73521]
[1733273651191,0.1277,3656.7,3655.6,2.73552]
[1733273651392,0.1277,3656.7,3656.0,2.73515]
[1733273651962,0.1277,3656.7,3655.8,2.73536]
[1733273652213,0.1277,3656.7,3655.2,2.73582]
[1733273652821,0.28595849,3657.4,3656.6,2.73477]
[1733273652822,0.1252,3657.3,3656.6,2.73477]
[1733273653932,0.28595849,3657.4,3657.3,2.73425]
[1733273654622,0.1252,3658.5,3657.5,2.7341]
[1733273654831,0.1252,3658.5,3657.0,2.73448]
[1733273654999,0.28578585,3658.4,3657.1,0.680583]
[1733273655333,0.28578585,3658.4,3658.0,2.73372]
[1733273655630,0.28578585,3658.4,3657.5,1.2733]
[1733273655791,0.28578585,3658.4,3658.1,2.73362]
[1733273655987,0.1252,3658.3,3657.1,1.3423]
[1733273656241,0.1252,3658.3,3656.5,4.0771]
[1733273656410,2.73373,3658.0,3656.5,4.07711]
[1733273656686,0.1252,3657.9,3655.9,1.3423]
[1733273656893,0.1252,3657.9,3656.3,2.735]
[1733273657292,0.1252,3657.9,3656.3,2.73493]
[1733273657493,0.1252,3657.9,3655.9,4.07754]
[1733273657494,0.285893,3657.8,3655.9,1.3423]
[1733273657693,2.73403,3657.6,3656.2,2.73507]
[1733273657938,0.1252,3657.7,3655.9,1.3423]
[1733273658133,0.1252,3657.7,3656.6,2.73476]
[1733273658433,0.1252,3657.7,3656.5,2.73478]
[1733273658633,0.1252,3657.7,3656.5,0.273478]
[1733273658931,0.1252,3657.7,3656.6,2.73471]
[1733273659087,0.1252,3657.7,3656.7,2.73464]
[1733273659284,0.1252,3657.7,3656.8,2.73461]
[1733273659929,0.1252,3657.7,3656.6,2.73475]
[1733273660441,0.1252,3657.7,3656.7,2.73469]
[1733273660743,0.1252,3657.7,3655.9,1.3423]
[1733273660920,0.1252,3657.7,3656.4,2.73493]
[1733273661100,0.4111,3657.7,3656.4,2.73493]
[1733273661302,0.1252,3657.7,3656.5,2.73483]
[1733273661848,0.28581914,3658.2,3655.0,0.1]
[1733273661849,0.28581914,3658.2,3658.1,2.73365]
[1733273662013,3.11666492,3660.6,3658.9,1.357]
[1733273662216,0.411,3660.9,3658.9,1.357]
[1733273662217,2.73196,3660.4,3658.9,2.73301]
[1733273662539,0.684196,3660.3,3658.8,0.0924228]
[1733273662837,0.411,3660.3,3658.8,0.0924228]
[1733273663045,0.411,3660.3,3659.1,2.7329]
[1733273663350,0.411,3660.3,3659.2,2.73282]
[1733273663910,0.411,3660.3,3659.1,2.73289]
[1733273664121,0.411,3660.3,3659.2,2.73281]
[1733273664325,0.411,3660.3,3658.9,2.73301]
[1733273664540,0.314298,3660.2,3658.9,2.73301]
[1733273665116,0.411,3660.3,3658.9,2.73301]
[1733273665443,0.411,3659.9,3658.2,2.73357]
[1733273665737,0.411,3659.9,3658.1,0.0924228]
[1733273665738,3.76938749,3659.8,3658.3,2.8259128]
[1733273666039,3.59806712,3660.3,3658.3,2.8259128]
[1733273666040,0.411,3659.6,3658.3,2.8259128]
[1733273666541,3.1436,3659.6,3658.3,0.0924228]
[1733273667098,0.411,3659.6,3658.3,2.8259228]
[1733273669071,3.14355,3659.6,3658.3,0.0924228]
[1733273669253,0.314355,3659.5,3658.3,2.8259128]
[1733273669559,0.411,3659.6,3658.4,2.7334]
[1733273670329,0.411,3659.6,3658.5,2.73335]
[1733273670528,0.411,3659.6,3658.6,0.0924228]
[1733273670830,0.411,3659.6,3658.7,2.73321]
[1733273671319,0.411,3659.6,3658.6,0.0924228]
[1733273671475,0.411,3659.6,3658.7,2.73318]
[1733273671645,0.411,3659.6,3658.8,2.73312]
[1733273671834,5.73172,3660.7,3659.3,2.73272]
[1733273671835,0.411,3660.5,3659.3,2.73272]
[1733273672029,0.411,3660.5,3659.3,2.73274]
[1733273672359,0.411,3660.5,3658.9,1.4156228]
[1733273672568,0.411,3660.5,3659.4,2.73268]
[1733273672887,0.411,3660.5,3659.3,2.73273]
[1733273673043,0.314278,3660.4,3659.3,2.73273]
[1733273673682,0.314278,3660.4,3659.1,2.7329]
[1733273674186,0.314278,3660.4,3659.4,2.73267]
[1733273674340,0.411,3660.5,3659.4,2.73267]
[1733273674543,0.411,3660.5,3659.7,0.2]
[1733273675482,3.14289,3660.5,3659.5,0.2]
[1733273675706,3.046259,3660.4,3659.5,0.2]
[1733273675855,0.411,3659.9,3659.0,0.2]
[1733273676387,0.411,3659.9,3658.6,2.8257028]
[1733273676388,0.411,3659.9,3659.1,0.2]
[1733273676749,0.411,3659.9,3659.4,0.2]
[1733273677743,0.285685,3659.8,3659.4,0.2]
[1733273678607,0.285685,3659.8,3659.4,2.93267]
[1733273678837,0.285685,3659.8,3659.4,0.2]
[1733273683159,0.285685,3659.8,3659.6,0.2]
[1733273684284,0.285685,3659.8,3659.7,4.1677828]
[1733273684485,0.285685,3659.8,3659.7,4.60456108]
[1733273685269,0.69,3661.3,3659.7,4.60456108]
[1733273685270,0.69,3661.3,3660.6,0.2]
[1733273685671,0.08490709,3661.4,3660.6,0.2]
[1733273686111,2.81609709,3661.4,3660.5,1.4525]
[1733273686427,0.69,3661.2,3660.4,0.2]
[1733273686617,0.69,3661.2,3660.6,2.73178]
[1733273686769,0.08490709,3661.4,3660.6,2.93172]
[1733273687109,0.08490709,3661.4,3660.8,2.9316]
[1733273687310,0.08490709,3661.4,3660.9,2.73156]
[1733273687511,0.08490709,3661.4,3661.1,0.2]
[1733273687673,0.08490709,3661.4,3661.3,1.3696]
[1733273687870,0.08490709,3661.4,3661.3,4.30087]
[1733273688193,0.08490709,3661.4,3661.3,4.74019928]
[1733273689407,0.08490709,3661.4,3661.3,0.2]
[1733273689613,0.28834185,3661.4,3660.6,0.2]
[1733273689782,0.20343476,3661.3,3660.6,0.2]
[1733273689984,0.20343476,3661.2,3660.6,0.2]
[1733273690187,0.89343476,3661.1,3660.3,0.2]
[1733273690386,0.20343476,3661.0,3660.3,0.2]
[1733273690590,0.20343476,3660.9,3660.3,0.2]
[1733273690788,0.20343476,3660.8,3660.3,0.2]
[1733273690994,0.20343476,3660.7,3660.3,0.2]
[1733273691330,0.69,3661.1,3660.3,0.2]
[1733273691331,0.20343476,3660.6,3660.3,0.2]
[1733273691616,0.20343476,3660.5,3660.3,0.2]
[1733273691821,0.20343476,3660.4,3660.3,0.2]
[1733273692421,0.69,3661.1,3660.5,0.2]
[1733273692719,0.20377545,3661.0,3660.5,0.2]
[1733273692880,0.20377545,3660.9,3660.5,0.2]
[1733273693228,0.20377545,3660.8,3660.3,0.2]
[1733273693378,0.20377545,3660.7,3660.3,0.2]
[1733273693579,0.20377545,3660.6,3660.3,0.2]
[1733273693888,0.20377545,3660.5,3660.3,0.2]
[1733273694103,3.62573545,3660.4,3659.5,0.2]
[1733273694425,0.69,3660.1,3658.6,0.2]
[1733273694577,0.69,3659.4,3658.3,0.35491243]
[1733273694780,0.69,3659.4,3658.2,0.2]
[1733273694781,0.54603545,3659.3,3658.2,0.2]
[1733273694978,0.20377545,3659.2,3658.6,0.2]
[1733273695191,0.20387428,3659.1,3658.7,0.2]
[1733273695392,0.20387428,3659.0,3658.7,0.2]
[1733273695623,0.20387428,3658.9,3658.7,0.3671]
[1733273695808,0.20387428,3658.8,3658.7,0.3671]
[1733273696128,0.69,3660.2,3659.1,0.2]
[1733273696284,0.20383886,3660.1,3658.9,0.2]
[1733273696477,0.20383886,3660.0,3658.9,0.2]
[1733273696680,0.20383886,3659.9,3658.9,0.2]
[1733273696924,0.20383886,3659.8,3658.9,0.2]
[1733273697080,0.20383886,3659.7,3658.9,0.2]
[1733273697281,0.20383886,3659.6,3658.8,0.18381]
[1733273697508,0.20383886,3659.5,3658.8,0.18381]
[1733273697734,0.20383886,3659.4,3658.8,0.18381]
[1733273697920,2.73293,3659.1,3658.2,0.2]
[1733273698137,0.342208,3660.1,3658.6,0.2]
[1733273698138,0.20383886,3659.0,3658.6,0.2]
[1733273698452,0.20383886,3659.0,3658.1,1.4417]
[1733273698453,0.20392075,3658.9,3658.2,0.2]
[1733273698642,3.42252,3659.7,3658.4,0.2924228]
[1733273698815,0.20390313,3659.6,3658.4,0.2924228]
[1733273699013,0.20390313,3659.5,3658.4,0.2924228]
[1733273699260,0.20390313,3659.4,3658.6,0.2]
[1733273699407,0.20390313,3659.3,3658.6,0.2]
[1733273699607,0.20390313,3659.2,3658.6,0.2]
[1733273699806,0.69,3659.7,3658.7,0.30257728]
[1733273700037,0.69,3659.7,3658.6,0.2]
[1733273700837,0.69,3659.7,3658.8,0.2]
[1733273701153,0.28564665,3659.6,3659.2,0.2924228]
[1733273701393,0.28564665,3659.6,3659.2,3.0252428]
[1733273701513,0.28564665,3659.6,3659.3,0.30252428]
[1733273702528,0.28564665,3659.6,3659.2,0.2924228]
[1733273702731,0.28564665,3659.6,3659.2,3.0252428]
[1733273702926,0.28564665,3659.6,3659.3,2.73274]
[1733273703231,0.28564665,3659.6,3659.4,2.73267]
[1733273703614,0.28564665,3659.6,3659.3,2.73272]
[1733273703819,0.28564665,3659.6,3659.4,0.30251428]
[1733273704462,0.28564665,3659.6,3659.2,0.0924228]
[1733273704463,0.29734263,3659.6,3659.2,0.0924228]
[1733273704817,0.29734263,3659.6,3659.5,0.2]
[1733273705054,1.14534114,3661.0,3660.3,0.2]
[1733273705272,0.08490709,3661.4,3661.2,2.73133]
[1733273705442,0.08490709,3661.4,3661.2,4.27673]
[1733273705633,0.37044696,3661.4,3661.2,4.27673]
[1733273705835,0.37044696,3661.4,3661.2,4.3691528]
[1733273706068,0.37044696,3661.4,3661.2,5.07921708]
[1733273706576,0.06794485,3662.0,3661.6,0.0924228]
[1733273706932,0.06794485,3662.0,3661.0,0.0924228]
[1733273707554,2.73104,3661.6,3660.4,0.0924228]
[1733273707784,0.273104,3661.5,3660.4,0.0924228]
[1733273707953,2.73098,3661.7,3660.4,0.0924228]
[1733273708152,0.69,3661.9,3660.8,2.73163]
[1733273708538,0.69,3661.9,3661.0,2.73149]
[1733273708838,0.69,3661.9,3660.7,0.2]
[1733273708839,0.69,3661.9,3660.8,0.0924228]
[1733273709052,0.06794485,3662.0,3661.2,2.73132]
[1733273709254,0.06794485,3662.0,3661.0,2.73145]
[1733273709554,0.06794485,3662.0,3660.9,1.3728]
[1733273709749,0.41680134,3662.0,3660.9,1.5728]
[1733273709962,0.06794485,3662.0,3661.4,2.73119]
[1733273710245,0.06794485,3662.0,3661.2,0.0924228]
[1733273710453,0.06794485,3662.0,3661.2,0.53210108]
[1733273710649,0.06794485,3662.0,3661.2,0.0924228]
[1733273711077,0.06794485,3662.0,3661.2,2.8237328]
[1733273711254,0.06794485,3662.0,3661.2,0.0924228]
[1733273711988,0.06794485,3662.0,3661.4,2.73117]
[1733273712276,0.06794485,3662.0,3661.5,2.73108]
[1733273712480,0.06794485,3662.0,3661.9,0.2924228]
[1733273713137,0.06794485,3662.0,3661.9,0.0924228]
[1733273714568,1.14534114,3664.1,3663.6,0.2]
[1733273714770,1.14534114,3664.1,3661.8,5.0]
[1733273714771,1.14534114,3664.7,3664.3,0.0924228]
[1733273714978,1.14534114,3665.2,3664.3,0.0924228]
[1733273715277,0.70468591,3665.2,3664.3,0.2924228]
[1733273715581,0.28532025,3665.1,3664.9,2.72854]
[1733273715887,0.28532025,3665.1,3664.9,0.2]
[1733273716052,0.69333715,3665.6,3664.9,0.2]
[1733273716254,0.69333715,3665.6,3665.0,2.92849]
[1733273716568,0.69333715,3665.6,3665.0,0.2]
[1733273717084,0.69333715,3665.6,3664.8,0.0924228]
[1733273717535,0.69333715,3665.6,3665.0,0.2]
[1733273717988,0.69333715,3665.6,3664.8,0.0924228]
[1733273718478,0.69333715,3665.6,3663.9,3.5845864]
[1733273718479,0.7822,3665.5,3664.7,0.0924228]
[1733273718650,0.7822,3665.5,3664.6,0.0924228]
[1733273719350,0.7822,3665.5,3663.7,0.0924228]
[1733273719538,2.7285,3665.1,3663.7,0.0924228]
[1733273719738,0.7822,3665.5,3663.7,0.0924228]
[1733273719944,0.50601235,3665.4,3663.7,0.0924228]
[1733273720137,2.72838,3665.2,3663.7,0.2924228]
[1733273720367,3.23423235,3665.4,3663.7,3.0218928]
[1733273720568,0.50601235,3665.4,3663.7,0.2924228]
[1733273720784,2.72837,3665.2,3663.8,0.17196228]
[1733273720989,0.7822,3665.5,3663.8,0.17196228]
[1733273721339,2.7283,3665.3,3663.8,0.17196228]
[1733273721753,0.7822,3665.5,3663.8,0.17196228]
[1733273721958,2.72844,3665.1,3663.8,0.17196228]
[1733273722652,2.72844,3665.1,3663.9,0.0924228]
[1733273723057,2.72875,3664.7,3663.9,0.0924228]
[1733273723370,2.72875,3664.7,3663.6,0.0924228]
[1733273723543,2.72854,3665.0,3663.8,0.0924228]
[1733273724048,2.72839,3665.2,3663.8,0.0924228]
[1733273724788,0.14755372,3665.4,3663.8,0.0924228]
[1733273725093,2.72852,3665.0,3663.8,0.0924228]
[1733273725246,0.43511909,3665.3,3663.8,0.0924228]
[1733273725675,0.14755372,3665.4,3663.8,0.0924228]
[1733273725885,2.72844,3665.1,3663.8,0.0924228]
[1733273726195,0.14755372,3665.4,3663.8,0.0924228]
[1733273726196,2.72863,3664.9,3663.8,0.0924228]
[1733273726391,2.72877,3664.7,3663.8,0.0924228]
[1733273726688,0.14755372,3665.4,3663.8,0.0924228]
[1733273727000,0.7822,3665.5,3664.2,1.5241228]
[1733273727293,0.28526849,3665.3,3664.4,0.0924228]
[1733273727605,0.28526849,3665.3,3664.3,0.2]
[1733273727606,0.28526849,3665.3,3665.0,1.49]
[1733273727889,0.28526849,3665.3,3665.0,1.92110028]
[1733273728049,0.28526849,3665.3,3665.2,0.0924228]
[1733273728692,0.69333715,3665.6,3665.2,0.0924228]
[1733273728929,0.1575772,3666.2,3665.8,0.2]
[1733273729186,0.28520117,3666.0,3665.9,0.0924228]
[1733273729551,0.1575772,3666.2,3665.9,0.0924228]
[1733273730202,0.1575772,3666.2,3665.7,1.3832]
[1733273730691,0.1575772,3666.2,3665.2,1.4563]
[1733273731062,0.1575772,3666.2,3665.5,0.2]
[1733273731277,0.1575772,3666.2,3665.8,1.4563]
[1733273732859,0.1575772,3666.2,3665.8,4.18421]
[1733273733062,0.1575772,3666.2,3665.2,0.15487228]
[1733273733257,0.1575772,3666.2,3665.4,0.0924228]
[1733273733496,0.1575772,3666.2,3665.7,0.0924228]
[1733273734400,0.1575772,3666.2,3665.7,2.8203528]
[1733273734698,0.1575772,3666.2,3665.8,1.3658]
[1733273734907,0.1575772,3666.2,3665.8,4.09369]
[1733273735209,0.1575772,3666.2,3666.1,0.0924228]
[1733273735781,0.1575772,3666.2,3666.1,0.51102108]
[1733273736417,0.1575772,3666.2,3666.1,0.0924228]
[1733273737236,0.1575772,3666.2,3665.4,1.4870228]
[1733273737529,0.1575772,3666.2,3665.8,0.0924228]
[1733273737902,0.1575772,3666.2,3666.1,1.5292228]
[1733273739201,0.7822,3668.5,3667.1,1.4368]
[1733273739409,0.7822,3668.5,3667.4,2.72669]
[1733273739800,0.7822,3668.5,3667.2,2.72687]
[1733273740012,0.7822,3668.9,3667.4,0.0924228]
[1733273740634,2.72591,3668.5,3667.4,0.0924228]
[1733273740814,2.72584,3668.6,3667.4,0.0924228]
[1733273741015,2.67584,3668.6,3667.5,0.0924228]
[1733273741345,2.726,3668.4,3667.2,0.0924228]
[1733273741623,3.08703333,3668.6,3667.5,0.0924228]
[1733273742003,2.72606,3668.3,3667.4,0.0924228]
[1733273742205,0.7558,3668.0,3667.1,1.4368]
[1733273742418,0.7558,3668.0,3666.6,0.0924228]
[1733273742787,2.72651,3667.7,3666.6,0.0924228]
[1733273742997,2.72637,3667.9,3667.1,0.0924228]
[1733273743235,0.7558,3668.0,3667.1,0.0924228]
[1733273743533,3.08703333,3667.8,3666.5,1.4597228]
[1733273743736,2.7267,3667.5,3666.5,0.0924228]
[1733273744050,2.72647,3667.8,3666.5,0.0924228]
[1733273744394,2.72658,3667.6,3666.5,0.37441708]
[1733273744603,0.348201,3667.9,3666.5,0.37441708]
[1733273744604,0.348201,3667.9,3666.5,0.0924228]
[1733273744826,0.7558,3667.5,3666.5,0.0924228]
[1733273745030,0.7558,3666.6,3665.3,0.17156723]
[1733273745334,0.7558,3666.6,3665.0,0.0924228]
[1733273745505,2.72753,3666.4,3665.3,0.0924228]
[1733273745693,2.72753,3666.4,3665.3,0.37450808]
[1733273746043,0.7558,3666.6,3665.3,0.37450808]
[1733273746044,0.7558,3666.6,3665.6,0.0924228]
[1733273746664,0.7558,3666.6,3665.2,0.0924228]
[1733273746842,2.72763,3666.2,3665.3,0.0924228]
[1733273747145,0.7558,3666.6,3665.6,2.72804]
[1733273747309,0.7558,3666.6,3665.7,1.673204]
[1733273748457,0.7558,3666.6,3665.8,0.0924228]
[1733273748604,3.08703333,3667.3,3665.7,1.673204]
[1733273748605,0.7558,3667.0,3666.0,2.8201828]
[1733273748956,3.08703333,3667.3,3666.2,2.72759]
[1733273749257,0.7558,3668.3,3667.0,0.0924228]
[1733273749403,3.84283333,3668.3,3667.0,0.0924228]
[1733273749610,3.84283333,3668.3,3667.1,2.72689]
[1733273749815,3.84283333,3668.3,3667.2,0.28193128]
[1733273750013,0.7558,3668.3,3667.4,2.8191328]
[1733273750249,0.7558,3668.3,3667.4,4.1751328]
[1733273750774,3.84283333,3668.7,3667.4,1.4484228]
[1733273751046,3.84283333,3668.7,3667.5,0.14484228]
[1733273751204,0.005,3669.5,3668.6,0.2]
[1733273751419,1e-05,3669.5,3669.4,4.3736628]
[1733273751609,0.28495924,3670.9,3669.8,2.8173628]
[1733273752054,2.72365,3671.6,3669.8,2.8173628]
[1733273752417,2.72365,3671.6,3669.8,0.0924228]
[1733273752634,2.72361,3671.6,3669.8,0.0924228]
[1733273753246,2.72368,3671.5,3669.8,0.0924228]
[1733273753452,2.72376,3671.4,3669.8,0.0924228]
[1733273753655,2.72394,3671.2,3669.8,0.0924228]
[1733273753863,2.72373,3671.5,3669.8,0.0924228]
[1733273754016,2.72384,3671.3,3669.8,0.0924228]
[1733273754412,2.72353,3671.7,3669.8,0.0924228]
[1733273754713,2.72407,3671.0,3669.8,0.0924228]
[1733273755058,0.28485908,3671.8,3669.4,1.356]
[1733273755059,0.7558,3670.7,3669.6,0.0924228]
[1733273755362,0.29243628,3671.8,3669.8,0.0924228]
[1733273755363,0.28485908,3671.8,3669.8,0.0924228]
[1733273756336,0.28485908,3671.8,3669.8,2.8173628]
[1733273756650,0.28485908,3671.8,3669.8,0.0924228]
[1733273757355,0.28485908,3671.8,3671.0,0.0924228]
[1733273757973,0.7058,3672.6,3671.0,0.0924228]
[1733273758272,0.7058,3672.6,3671.1,0.42667828]
[1733273758769,0.7058,3672.6,3671.0,2.8164128]
[1733273758977,0.7058,3672.6,3670.0,2.72475]
[1733273758978,0.0075772,3672.3,3669.9,0.37516089]
[1733273759125,2.72354,3671.7,3669.6,0.0924228]
[1733273759330,2.72364,3671.6,3669.9,0.0924228]
[1733273759529,0.272364,3671.5,3669.9,0.0924228]
[1733273759738,2.72352,3671.8,3669.9,0.0924228]
[1733273760151,2.72352,3671.8,3669.5,2.8175528]
[1733273760473,5.72325,3672.1,3669.9,2.8172728]
[1733273760640,2.72277,3672.8,3670.5,2.8168328]
[1733273760858,0.00758,3673.0,3671.1,1.4502]
[1733273761058,0.00758,3673.0,3671.1,4.17415]
[1733273761059,0.7058,3672.9,3671.1,4.17415]
[1733273761369,0.03403409,3672.8,3671.1,1.4502]
[1733273761707,2.72318,3672.2,3670.5,1.4502]
[1733273762045,3.42905,3672.1,3670.5,1.4502]
[1733273762253,0.342905,3672.0,3670.5,1.4502]
[1733273763164,0.342905,3672.0,3670.0,2.72477]
[1733273763165,4.15427806,3673.7,3671.6,2.72355]
[1733273763345,4.15427806,3673.7,3671.4,1.4015]
[1733273763346,1.42459086,3673.7,3671.4,1.4015]
[1733273763526,1.42459086,3673.7,3671.8,1.4015]
[1733273763990,1.42459086,3673.7,3672.0,2.72326]
[1733273764284,1.42459086,3673.7,3671.8,1.4015]
[1733273764285,1.42459086,3673.7,3672.2,2.72315]
[1733273764437,1.42459086,3673.7,3671.9,2.8157928]
[1733273764635,1.42459086,3673.7,3672.0,0.42172928]